[Event "*** Titled Tuesday Blitz"]
[Site "Chess.com"]
[Date "2020.05.19"]
[Round "2"]
[White "archess2"]
[Black "GameOverBro"]
[Result "0-1"]
[WhiteElo "2287"]
[BlackElo "2534"]
[TimeControl "180+1"]
[EndTime "12:19:23 PDT"]
[Termination "GameOverBro won by checkmate"]

1. d4 {[%clk 0:02:48.5]} 1... d6 {[%clk 0:03:00]} 2. c4 {[%clk 0:02:47.6]} 2...
Nf6 {[%clk 0:02:59.9]} 3. Nc3 {[%clk 0:02:47.3]} 3... Nbd7 {[%clk 0:02:58.1]} 4.
e4 {[%clk 0:02:47.4]} 4... e5 {[%clk 0:02:58.6]} 5. Nf3 {[%clk 0:02:47]} 5...
Be7 {[%clk 0:02:56.5]} 6. Be2 {[%clk 0:02:47]} 6... c6 {[%clk 0:02:54]} 7. O-O
{[%clk 0:02:46.7]} 7... a5 {[%clk 0:02:54.3]} 8. d5 {[%clk 0:02:46.2]} 8... Nc5
{[%clk 0:02:53.2]} 9. Bd3 {[%clk 0:02:44.9]} 9... Nxd3 {[%clk 0:02:52.6]} 10.
Qxd3 {[%clk 0:02:44.6]} 10... O-O {[%clk 0:02:52.2]} 11. Ne1 {[%clk 0:02:43]}
11... cxd5 {[%clk 0:02:49.3]} 12. cxd5 {[%clk 0:02:42.6]} 12... Nd7 {[%clk
0:02:44]} 13. Qe3 {[%clk 0:02:39]} 13... h6 {[%clk 0:02:40.3]} 14. Nd3 {[%clk
0:02:39]} 14... Bg5 {[%clk 0:02:39.6]} 15. f4 {[%clk 0:02:38.6]} 15... exf4
{[%clk 0:02:39.7]} 16. Nxf4 {[%clk 0:02:38.5]} 16... Ne5 {[%clk 0:02:32]} 17.
Qg3 {[%clk 0:02:36.4]} 17... Bh4 {[%clk 0:02:26.1]} 18. Qe3 {[%clk 0:02:33.1]}
18... Ng4 {[%clk 0:02:17.5]} 19. Qe2 {[%clk 0:02:30.2]} 19... Bf6 {[%clk
0:02:11.8]} 20. h3 {[%clk 0:02:23.1]} 20... Bd4+ {[%clk 0:02:06.4]} 21. Kh1
{[%clk 0:02:22.8]} 21... Qh4 {[%clk 0:02:02.8]} 22. Qf3 {[%clk 0:02:18.6]} 22...
Nf2+ {[%clk 0:01:57.1]} 23. Kh2 {[%clk 0:02:18]} 23... Ng4+ {[%clk 0:01:44.8]}
24. Kh1 {[%clk 0:02:17.8]} 24... Ne5 {[%clk 0:01:43.2]} 25. Qd1 {[%clk
0:02:14.6]} 25... Bf2 {[%clk 0:01:24.3]} 26. Nce2 {[%clk 0:01:52.6]} 26... g5
{[%clk 0:01:21.6]} 27. Nh5 {[%clk 0:01:51.5]} 27... Bxh3 {[%clk 0:01:15.8]} 28.
Nf6+ {[%clk 0:01:51.3]} 28... Kg7 {[%clk 0:01:11.4]} 29. Rxf2 {[%clk 0:01:49.5]}
29... Qxf2 {[%clk 0:01:03.8]} 30. Nh5+ {[%clk 0:01:48]} 30... Kg6 {[%clk
0:00:59.1]} 31. gxh3 {[%clk 0:01:46.2]} 31... Nf3 {[%clk 0:00:56.6]} 32. Nhf4+
{[%clk 0:01:42]} 32... gxf4 {[%clk 0:00:53.8]} 33. Bxf4 {[%clk 0:01:42]} 33...
Nh4 {[%clk 0:00:40.4]} 34. Qf1 {[%clk 0:01:34.8]} 34... Qxf1+ {[%clk 0:00:36.1]}
35. Rxf1 {[%clk 0:01:34.3]} 35... Rad8 {[%clk 0:00:35.4]} 36. Nd4 {[%clk
0:01:32.9]} 36... Rfe8 {[%clk 0:00:32.4]} 37. Re1 {[%clk 0:01:25.1]} 37... Kh7
{[%clk 0:00:28.1]} 38. Nb5 {[%clk 0:01:23.8]} 38... f5 {[%clk 0:00:26.7]} 39.
Nxd6 {[%clk 0:01:22.7]} 39... Rxd6 {[%clk 0:00:20.2]} 40. Bxd6 {[%clk
0:01:22.5]} 40... fxe4 {[%clk 0:00:20.7]} 41. Bc7 {[%clk 0:01:21.2]} 41... Nf3
{[%clk 0:00:20.4]} 42. Re2 {[%clk 0:01:12.3]} 42... Nd4 {[%clk 0:00:19.6]} 43.
Re3 {[%clk 0:01:09.8]} 43... Nf5 {[%clk 0:00:18.8]} 44. Re1 {[%clk 0:01:10]}
44... Re7 {[%clk 0:00:14.1]} 45. d6 {[%clk 0:01:08.9]} 45... Rd7 {[%clk
0:00:11.8]} 46. Rxe4 {[%clk 0:01:08.6]} 46... Kg6 {[%clk 0:00:12.1]} 47. Re6+
{[%clk 0:01:07.4]} 47... Kf7 {[%clk 0:00:11.3]} 48. Re5 {[%clk 0:01:07.6]} 48...
Kf6 {[%clk 0:00:11.1]} 49. Rxa5 {[%clk 0:01:07]} 49... Nxd6 {[%clk 0:00:11.1]}
50. Bxd6 {[%clk 0:01:06.9]} 50... Rxd6 {[%clk 0:00:12]} 51. Rb5 {[%clk
0:01:07.4]} 51... b6 {[%clk 0:00:11.5]} 52. Kg2 {[%clk 0:01:07.5]} 52... Ke7
{[%clk 0:00:11.9]} 53. a4 {[%clk 0:01:06.3]} 53... Kd7 {[%clk 0:00:12.1]} 54. b4
{[%clk 0:01:06]} 54... Kc6 {[%clk 0:00:12]} 55. Rh5 {[%clk 0:01:06]} 55... Kb7
{[%clk 0:00:09.3]} 56. Kf3 {[%clk 0:01:04.5]} 56... Rd4 {[%clk 0:00:09.1]} 57.
Rxh6 {[%clk 0:01:01]} 57... Rxb4 {[%clk 0:00:09.5]} 58. Rh7+ {[%clk 0:01:00.3]}
58... Ka6 {[%clk 0:00:09.4]} 59. h4 {[%clk 0:01:00.6]} 59... Rxa4 {[%clk
0:00:09.9]} 60. h5 {[%clk 0:01:01]} 60... b5 {[%clk 0:00:10.5]} 61. h6 {[%clk
0:01:01.4]} 61... b4 {[%clk 0:00:11]} 62. Rd7 {[%clk 0:00:57.6]} 62... b3 {[%clk
0:00:09.9]} 63. Kg3 {[%clk 0:00:52.1]} 63... b2 {[%clk 0:00:06.3]} 64. h7 {[%clk
0:00:46.4]} 64... b1=Q {[%clk 0:00:05.7]} 65. h8=Q {[%clk 0:00:41.2]} 65... Qb3+
{[%clk 0:00:05.2]} 66. Kf2 {[%clk 0:00:37.7]} 66... Ra2+ {[%clk 0:00:05.3]} 67.
Ke1 {[%clk 0:00:37.9]} 67... Qe3+ {[%clk 0:00:02.8]} 68. Kd1 {[%clk 0:00:37.3]}
68... Qe2+ {[%clk 0:00:03.1]} 69. Kc1 {[%clk 0:00:37.2]} 69... Qc2# {[%clk
0:00:04]} 0-1

[Event "*** Titled Tuesday Blitz"]
[Site "Chess.com"]
[Date "2020.05.19"]
[Round "2"]
[White "PavlovDanila"]
[Black "jlandaw"]
[Result "0-1"]
[WhiteElo "2664"]
[BlackElo "2481"]
[TimeControl "180+1"]
[EndTime "12:19:24 PDT"]
[Termination "jlandaw won by resignation"]

1. e4 {[%clk 0:03:00.9]} 1... e5 {[%clk 0:02:51.6]} 2. Nf3 {[%clk 0:03:00.5]}
2... Nc6 {[%clk 0:02:51.5]} 3. Bb5 {[%clk 0:03:00.9]} 3... a6 {[%clk 0:02:51.5]}
4. Bxc6 {[%clk 0:03:00.9]} 4... dxc6 {[%clk 0:02:51.6]} 5. O-O {[%clk
0:03:01.4]} 5... Qf6 {[%clk 0:02:51.8]} 6. d4 {[%clk 0:02:56.9]} 6... exd4
{[%clk 0:02:52.7]} 7. Qxd4 {[%clk 0:02:53.2]} 7... Qxd4 {[%clk 0:02:51.4]} 8.
Nxd4 {[%clk 0:02:54.1]} 8... Bd7 {[%clk 0:02:52]} 9. Bf4 {[%clk 0:02:53]} 9...
O-O-O {[%clk 0:02:52]} 10. Nc3 {[%clk 0:02:52]} 10... g6 {[%clk 0:02:44.8]} 11.
Rad1 {[%clk 0:02:45.1]} 11... Bg7 {[%clk 0:02:40.7]} 12. Nb3 {[%clk 0:02:45]}
12... b6 {[%clk 0:02:19.2]} 13. Be3 {[%clk 0:02:43.8]} 13... Bxc3 {[%clk
0:01:50.1]} 14. bxc3 {[%clk 0:02:42]} 14... Ne7 {[%clk 0:01:50.8]} 15. f3 {[%clk
0:02:37.9]} 15... c5 {[%clk 0:01:50.1]} 16. Rd2 {[%clk 0:02:33.8]} 16... Be6
{[%clk 0:01:48.6]} 17. Rfd1 {[%clk 0:02:33.7]} 17... Nc6 {[%clk 0:01:48.9]} 18.
Bg5 {[%clk 0:02:31.6]} 18... Rxd2 {[%clk 0:01:46.1]} 19. Rxd2 {[%clk 0:02:32.5]}
19... Re8 {[%clk 0:01:45.4]} 20. Bf6 {[%clk 0:02:22.7]} 20... Bc4 {[%clk
0:01:33]} 21. Kf2 {[%clk 0:02:15.8]} 21... Re6 {[%clk 0:01:31.4]} 22. Bg5 {[%clk
0:02:11.6]} 22... Na7 {[%clk 0:01:26.7]} 23. Rd8+ {[%clk 0:02:03.4]} 23... Kb7
{[%clk 0:01:27.1]} 24. Ke3 {[%clk 0:01:51.7]} 24... Nb5 {[%clk 0:01:24.6]} 25.
Kd2 {[%clk 0:01:44.8]} 25... Rd6+ {[%clk 0:01:19.9]} 26. Rxd6 {[%clk 0:01:42]}
26... cxd6 {[%clk 0:01:20.8]} 27. Bf6 {[%clk 0:01:34.3]} 27... Kc6 {[%clk
0:01:20.4]} 28. Ke3 {[%clk 0:01:29.4]} 28... Kd7 {[%clk 0:01:14.2]} 29. g4
{[%clk 0:01:27.9]} 29... Ke6 {[%clk 0:01:09.8]} 30. g5 {[%clk 0:01:27.9]} 30...
d5 {[%clk 0:01:05.6]} 31. exd5+ {[%clk 0:01:24.4]} 31... Kxd5 {[%clk 0:01:02.4]}
32. h4 {[%clk 0:01:00.3]} 32... Na3 {[%clk 0:01:01.5]} 33. Kd2 {[%clk 0:00:57]}
33... a5 {[%clk 0:00:45.8]} 34. Nc1 {[%clk 0:00:50.8]} 34... a4 {[%clk
0:00:43.3]} 35. Bd8 {[%clk 0:00:41]} 35... Nb1+ {[%clk 0:00:43.1]} 36. Ke3
{[%clk 0:00:36.6]} 36... Nxc3 {[%clk 0:00:41.1]} 37. Bxb6 {[%clk 0:00:32.8]}
37... Nxa2 {[%clk 0:00:32.5]} 38. Nxa2 {[%clk 0:00:29.9]} 38... Bxa2 {[%clk
0:00:33.4]} 39. Ba5 {[%clk 0:00:28.2]} 39... Bc4 {[%clk 0:00:28.8]} 40. Kd2
{[%clk 0:00:19.9]} 40... a3 {[%clk 0:00:21.2]} 41. Kc1 {[%clk 0:00:19.3]} 41...
Be2 {[%clk 0:00:17.7]} 42. f4 {[%clk 0:00:19]} 42... Ke4 {[%clk 0:00:18]} 43.
Bc7 {[%clk 0:00:17.5]} 43... Kf5 {[%clk 0:00:17]} 44. Kb1 {[%clk 0:00:17.1]}
44... Kg4 {[%clk 0:00:15.6]} 45. Bd6 {[%clk 0:00:16.8]} 45... Bc4 {[%clk
0:00:13.5]} 46. Ka1 {[%clk 0:00:11]} 46... a2 {[%clk 0:00:13.8]} 47. Kb2 {[%clk
0:00:10.8]} 47... Kxh4 {[%clk 0:00:10]} 48. Bxc5 {[%clk 0:00:10.5]} 48... Kg4
{[%clk 0:00:09.8]} 49. Bd6 {[%clk 0:00:10.8]} 49... Kf5 {[%clk 0:00:10]} 50. Be5
{[%clk 0:00:10.3]} 50... f6 {[%clk 0:00:08.8]} 51. Bxf6 {[%clk 0:00:08.5]} 51...
h5 {[%clk 0:00:07.3]} 52. Bd4 {[%clk 0:00:02.5]} 52... h4 {[%clk 0:00:07]} 53.
Bf2 {[%clk 0:00:02.5]} 53... h3 {[%clk 0:00:07.1]} 54. Bg3 {[%clk 0:00:03.4]}
54... Kg4 {[%clk 0:00:06.6]} 55. Bh2 {[%clk 0:00:03.7]} 55... Be6 {[%clk
0:00:06.7]} 56. f5 {[%clk 0:00:03.9]} 56... Kxf5 {[%clk 0:00:06.3]} 57. c3
{[%clk 0:00:02.5]} 57... Bc4 {[%clk 0:00:06.5]} 58. Ka1 {[%clk 0:00:02.4]} 58...
Kxg5 {[%clk 0:00:06.8]} 59. Kb2 {[%clk 0:00:03.3]} 59... Kg4 {[%clk 0:00:07.1]}
0-1

[Event "*** Titled Tuesday Blitz"]
[Site "Chess.com"]
[Date "2020.05.19"]
[Round "2"]
[White "EvgenyRomanov"]
[Black "realmadridtv"]
[Result "1-0"]
[WhiteElo "2683"]
[BlackElo "2467"]
[TimeControl "180+1"]
[EndTime "12:19:25 PDT"]
[Termination "EvgenyRomanov won by resignation"]

1. d4 {[%clk 0:03:00.9]} 1... Nf6 {[%clk 0:02:59.9]} 2. c4 {[%clk 0:03:01.8]}
2... e6 {[%clk 0:03:00.1]} 3. Nf3 {[%clk 0:03:01.4]} 3... d5 {[%clk 0:03:00.2]}
4. Nc3 {[%clk 0:03:00.6]} 4... dxc4 {[%clk 0:02:58.5]} 5. e4 {[%clk 0:02:55]}
5... b5 {[%clk 0:02:58.7]} 6. e5 {[%clk 0:02:50.7]} 6... Nd5 {[%clk 0:02:58.8]}
7. Nxb5 {[%clk 0:02:49.7]} 7... Nb6 {[%clk 0:02:59.2]} 8. Nc3 {[%clk 0:02:43.7]}
8... Nc6 {[%clk 0:02:58.6]} 9. Bg5 {[%clk 0:02:40.8]} 9... Be7 {[%clk
0:02:58.3]} 10. Bxe7 {[%clk 0:02:39.6]} 10... Qxe7 {[%clk 0:02:58.1]} 11. Be2
{[%clk 0:02:34.9]} 11... Bb7 {[%clk 0:02:53.9]} 12. O-O {[%clk 0:02:33.6]} 12...
Nb4 {[%clk 0:02:48.8]} 13. a3 {[%clk 0:02:25.1]} 13... N4d5 {[%clk 0:02:48]} 14.
Ne4 {[%clk 0:02:21.3]} 14... Nf4 {[%clk 0:02:38.2]} 15. Nc5 {[%clk 0:02:17.2]}
15... Bd5 {[%clk 0:02:31.1]} 16. Qd2 {[%clk 0:02:04.2]} 16... Nxe2+ {[%clk
0:02:28.2]} 17. Qxe2 {[%clk 0:02:05.1]} 17... O-O {[%clk 0:02:26.7]} 18. Nd2
{[%clk 0:02:02.1]} 18... f5 {[%clk 0:02:19.4]} 19. Nb1 {[%clk 0:01:53.6]} 19...
Nd7 {[%clk 0:02:07.8]} 20. Nxd7 {[%clk 0:01:49.7]} 20... Qxd7 {[%clk 0:02:07.9]}
21. Nc3 {[%clk 0:01:50.6]} 21... c6 {[%clk 0:02:05.3]} 22. Rfd1 {[%clk
0:01:49.4]} 22... Rab8 {[%clk 0:02:03.9]} 23. Rd2 {[%clk 0:01:47.8]} 23... Rb3
{[%clk 0:02:01.9]} 24. Rc1 {[%clk 0:01:45.5]} 24... Rfb8 {[%clk 0:02:00.7]} 25.
Na4 {[%clk 0:01:45.2]} 25... Qe7 {[%clk 0:01:58.1]} 26. Nc5 {[%clk 0:01:07.6]}
26... Qg5 {[%clk 0:01:32.9]} 27. f4 {[%clk 0:01:05.9]} 27... Qxf4 {[%clk
0:01:29.3]} 28. Nxb3 {[%clk 0:01:05.6]} 28... Rxb3 {[%clk 0:01:28.9]} 29. Rc3
{[%clk 0:01:03.4]} 29... h5 {[%clk 0:00:59.6]} 30. Rxb3 {[%clk 0:01:00.8]} 30...
cxb3 {[%clk 0:01:00.5]} 31. h3 {[%clk 0:00:44.8]} 31... h4 {[%clk 0:00:55.6]}
32. Qf2 {[%clk 0:00:44.3]} 32... Qe4 {[%clk 0:00:54.4]} 33. Re2 {[%clk
0:00:43.7]} 33... Qb1+ {[%clk 0:00:50.1]} 34. Qe1 {[%clk 0:00:41.6]} 34... Qd3
{[%clk 0:00:43.9]} 35. Rd2 {[%clk 0:00:40.8]} 35... Qc4 {[%clk 0:00:20.5]} 36.
Kh2 {[%clk 0:00:40.4]} 36... c5 {[%clk 0:00:20.3]} 37. Qxh4 {[%clk 0:00:34.9]}
37... Qc1 {[%clk 0:00:20.4]} 38. Qd8+ {[%clk 0:00:28.7]} 38... Kf7 {[%clk
0:00:19.6]} 39. Rf2 {[%clk 0:00:22]} 39... cxd4 {[%clk 0:00:18.7]} 40. Rxf5+
{[%clk 0:00:21.8]} 40... exf5 {[%clk 0:00:18.4]} 41. Qxd5+ {[%clk 0:00:22.4]}
41... Kg6 {[%clk 0:00:17.9]} 42. Qxd4 {[%clk 0:00:22.2]} 42... f4 {[%clk
0:00:12.7]} 43. e6 {[%clk 0:00:18.7]} 43... Qe3 {[%clk 0:00:12.7]} 44. Qxe3
{[%clk 0:00:16.3]} 44... fxe3 {[%clk 0:00:13.6]} 45. Kg3 {[%clk 0:00:16.7]}
45... Kf6 {[%clk 0:00:13.1]} 46. Kf3 {[%clk 0:00:17.1]} 46... e2 {[%clk
0:00:14]} 47. Kxe2 {[%clk 0:00:17.3]} 47... Kxe6 {[%clk 0:00:14.5]} 48. Ke3
{[%clk 0:00:17.3]} 48... Ke5 {[%clk 0:00:14.3]} 49. Kd3 {[%clk 0:00:16.2]} 49...
a5 {[%clk 0:00:13.2]} 50. a4 {[%clk 0:00:15.9]} 50... Kf4 {[%clk 0:00:12.3]} 51.
Kc4 {[%clk 0:00:15.8]} 51... Kg3 {[%clk 0:00:12.6]} 52. Kb5 {[%clk 0:00:15.5]}
52... Kxg2 {[%clk 0:00:13.2]} 53. Kxa5 {[%clk 0:00:16.4]} 53... Kxh3 {[%clk
0:00:13.7]} 54. Kb4 {[%clk 0:00:16.7]} 54... g5 {[%clk 0:00:14.6]} 55. a5 {[%clk
0:00:17.3]} 55... g4 {[%clk 0:00:15.5]} 56. a6 {[%clk 0:00:17.9]} 56... g3
{[%clk 0:00:16.4]} 57. a7 {[%clk 0:00:18.5]} 57... g2 {[%clk 0:00:17.3]} 58.
a8=Q {[%clk 0:00:18.2]} 58... g1=Q {[%clk 0:00:18.2]} 59. Qh8+ {[%clk
0:00:17.7]} 59... Kg2 {[%clk 0:00:18.3]} 60. Qg8+ {[%clk 0:00:18.6]} 60... Kf1
{[%clk 0:00:18.8]} 61. Qxg1+ {[%clk 0:00:18.9]} 61... Kxg1 {[%clk 0:00:19.5]}
62. Kxb3 {[%clk 0:00:19.5]} 1-0

[Event "*** Titled Tuesday Blitz"]
[Site "Chess.com"]
[Date "2020.05.19"]
[Round "2"]
[White "Justinz"]
[Black "A-Fier"]
[Result "0-1"]
[WhiteElo "2333"]
[BlackElo "2733"]
[TimeControl "180+1"]
[EndTime "12:19:26 PDT"]
[Termination "A-Fier won on time"]

1. e4 {[%clk 0:03:00.2]} 1... Nf6 {[%clk 0:02:59.7]} 2. e5 {[%clk 0:02:59]} 2...
Nd5 {[%clk 0:02:59.7]} 3. d4 {[%clk 0:02:59]} 3... d6 {[%clk 0:02:58.7]} 4. exd6
{[%clk 0:02:59]} 4... cxd6 {[%clk 0:02:57.3]} 5. c4 {[%clk 0:02:58.9]} 5... Nb6
{[%clk 0:02:57.1]} 6. Nc3 {[%clk 0:02:56.5]} 6... g6 {[%clk 0:02:56.8]} 7. h3
{[%clk 0:02:55.2]} 7... Bg7 {[%clk 0:02:56.8]} 8. Nf3 {[%clk 0:02:55.7]} 8...
O-O {[%clk 0:02:57.1]} 9. Be2 {[%clk 0:02:55.7]} 9... Nc6 {[%clk 0:02:57.7]} 10.
O-O {[%clk 0:02:53.3]} 10... Bf5 {[%clk 0:02:50.6]} 11. Be3 {[%clk 0:02:49.2]}
11... d5 {[%clk 0:02:50.6]} 12. c5 {[%clk 0:02:36.9]} 12... Nc4 {[%clk
0:02:50.4]} 13. Bc1 {[%clk 0:02:28.2]} 13... b6 {[%clk 0:02:50.2]} 14. b3 {[%clk
0:02:25.3]} 14... bxc5 {[%clk 0:02:50]} 15. bxc4 {[%clk 0:02:21.7]} 15... cxd4
{[%clk 0:02:50.4]} 16. Nxd5 {[%clk 0:02:21.4]} 16... d3 {[%clk 0:02:50.4]} 17.
Bxd3 {[%clk 0:02:13.3]} 17... Bxd3 {[%clk 0:02:51.3]} 18. Qxd3 {[%clk
0:02:12.6]} 18... Bxa1 {[%clk 0:02:51.8]} 19. Bh6 {[%clk 0:02:11.7]} 19... Bg7
{[%clk 0:02:51.9]} 20. Bxg7 {[%clk 0:02:11.5]} 20... Kxg7 {[%clk 0:02:52]} 21.
Rd1 {[%clk 0:02:10.8]} 21... Qa5 {[%clk 0:02:45.8]} 22. Nd4 {[%clk 0:01:58.6]}
22... Nxd4 {[%clk 0:02:05.7]} 23. Qxd4+ {[%clk 0:01:57.6]} 23... f6 {[%clk
0:02:06.6]} 24. Nxe7 {[%clk 0:01:56.2]} 24... Rad8 {[%clk 0:02:01.1]} 25. Nd5
{[%clk 0:01:55.5]} 25... Rf7 {[%clk 0:01:57.8]} 26. Rd2 {[%clk 0:01:51.8]} 26...
Qa6 {[%clk 0:01:50.6]} 27. g4 {[%clk 0:01:42.7]} 27... Qe6 {[%clk 0:01:13.8]}
28. g5 {[%clk 0:01:32.6]} 28... Qxh3 {[%clk 0:01:12.9]} 29. gxf6+ {[%clk
0:01:30.5]} 29... Kh8 {[%clk 0:01:13.2]} 30. Rd3 {[%clk 0:01:28.4]} 30... Qf5
{[%clk 0:01:12.1]} 31. Re3 {[%clk 0:01:19.2]} 31... Rb8 {[%clk 0:01:06]} 32. Re5
{[%clk 0:01:13.9]} 32... Qf3 {[%clk 0:01:02.8]} 33. Re1 {[%clk 0:01:08.2]} 33...
h5 {[%clk 0:00:59.1]} 34. Kh2 {[%clk 0:00:57.9]} 34... g5 {[%clk 0:00:56.4]} 35.
Re7 {[%clk 0:00:56.5]} 35... Rb1 {[%clk 0:00:53.5]} 36. Re8+ {[%clk 0:00:47.4]}
36... Kh7 {[%clk 0:00:53.5]} 37. Qe4+ {[%clk 0:00:46.9]} 37... Qxe4 {[%clk
0:00:53.9]} 38. Rxe4 {[%clk 0:00:47.2]} 38... Rb2 {[%clk 0:00:53.4]} 39. Kg2
{[%clk 0:00:45.5]} 39... Rxa2 {[%clk 0:00:53.7]} 40. Re7 {[%clk 0:00:37]} 40...
Kg6 {[%clk 0:00:53.5]} 41. Re8 {[%clk 0:00:36.7]} 41... Rc2 {[%clk 0:00:52.6]}
42. Rc8 {[%clk 0:00:34.9]} 42... a5 {[%clk 0:00:52.2]} 43. Rc6 {[%clk
0:00:31.6]} 43... a4 {[%clk 0:00:50]} 44. Ne7+ {[%clk 0:00:31.3]} 44... Kh7
{[%clk 0:00:50.4]} 45. Nf5 {[%clk 0:00:22.5]} 45... a3 {[%clk 0:00:50.2]} 46.
Ne3 {[%clk 0:00:22.6]} 46... Rc3 {[%clk 0:00:48.5]} 47. Ra6 {[%clk 0:00:22.1]}
47... Kg6 {[%clk 0:00:47.2]} 48. Nd5 {[%clk 0:00:18.4]} 48... Rxc4 {[%clk
0:00:46.1]} 49. Rxa3 {[%clk 0:00:18.7]} 49... Rd4 {[%clk 0:00:44.4]} 50. Ra5
{[%clk 0:00:17.9]} 50... h4 {[%clk 0:00:42.9]} 51. f3 {[%clk 0:00:16.1]} 51...
Kh5 {[%clk 0:00:40.7]} 52. Kf2 {[%clk 0:00:12.1]} 52... Rd2+ {[%clk 0:00:39.8]}
53. Ke3 {[%clk 0:00:12.1]} 53... Rb2 {[%clk 0:00:38.7]} 54. Ke4 {[%clk 0:00:10]}
54... h3 {[%clk 0:00:38.8]} 55. Ra1 {[%clk 0:00:09.8]} 55... h2 {[%clk
0:00:38.7]} 56. Kf5 {[%clk 0:00:08.9]} 56... Re2 {[%clk 0:00:27.7]} 57. Rh1
{[%clk 0:00:08]} 57... Rf8 {[%clk 0:00:26.4]} 58. f4 {[%clk 0:00:05.3]} 58... g4
{[%clk 0:00:26]} 59. Ne7 {[%clk 0:00:01.4]} 59... g3 {[%clk 0:00:26]} 60. Ng6
{[%clk 0:00:01.2]} 60... Rxf6+ {[%clk 0:00:20.2]} 61. Kxf6 {[%clk 0:00:01.2]}
61... Kg4 {[%clk 0:00:20]} 0-1

[Event "*** Titled Tuesday Blitz"]
[Site "Chess.com"]
[Date "2020.05.19"]
[Round "2"]
[White "THE_PLAYER6"]
[Black "fighter2jz"]
[Result "0-1"]
[WhiteElo "2502"]
[BlackElo "2760"]
[TimeControl "180+1"]
[EndTime "12:19:27 PDT"]
[Termination "fighter2jz won by checkmate"]

1. d4 {[%clk 0:03:00.9]} 1... Nf6 {[%clk 0:02:59.1]} 2. c4 {[%clk 0:03:00.7]}
2... g6 {[%clk 0:02:55.3]} 3. Nc3 {[%clk 0:03:00.6]} 3... d5 {[%clk 0:02:55.5]}
4. Nf3 {[%clk 0:03:00.5]} 4... Bg7 {[%clk 0:02:54.9]} 5. h4 {[%clk 0:03:00.6]}
5... c6 {[%clk 0:02:54.1]} 6. cxd5 {[%clk 0:03:00.4]} 6... cxd5 {[%clk
0:02:53.9]} 7. Bf4 {[%clk 0:03:01]} 7... Nc6 {[%clk 0:02:52.5]} 8. e3 {[%clk
0:03:01]} 8... O-O {[%clk 0:02:50.5]} 9. Qb3 {[%clk 0:03:00.9]} 9... b6 {[%clk
0:02:34.7]} 10. Rc1 {[%clk 0:02:57.1]} 10... Bb7 {[%clk 0:02:34.6]} 11. Be2
{[%clk 0:02:50.6]} 11... Rc8 {[%clk 0:02:30.5]} 12. O-O {[%clk 0:02:47.1]} 12...
e6 {[%clk 0:02:28.1]} 13. Nb5 {[%clk 0:02:36.7]} 13... Ne4 {[%clk 0:02:26.5]}
14. Qa3 {[%clk 0:02:08.5]} 14... a6 {[%clk 0:02:20.4]} 15. Nd6 {[%clk
0:01:59.7]} 15... Nxd6 {[%clk 0:02:20.2]} 16. Qxd6 {[%clk 0:01:47.4]} 16... Qxd6
{[%clk 0:02:17.5]} 17. Bxd6 {[%clk 0:01:48.3]} 17... Rfd8 {[%clk 0:02:18]} 18.
Bf4 {[%clk 0:01:46]} 18... f6 {[%clk 0:02:17.3]} 19. Rfd1 {[%clk 0:01:39.2]}
19... Kf7 {[%clk 0:02:15]} 20. a3 {[%clk 0:01:34.3]} 20... Bf8 {[%clk
0:02:07.4]} 21. Rc3 {[%clk 0:01:31.3]} 21... Bd6 {[%clk 0:01:57.5]} 22. Bxd6
{[%clk 0:01:27.2]} 22... Rxd6 {[%clk 0:01:56.9]} 23. Rdc1 {[%clk 0:01:27.8]}
23... Ke8 {[%clk 0:01:46]} 24. b4 {[%clk 0:01:26.3]} 24... Kd7 {[%clk 0:01:30]}
25. Bd1 {[%clk 0:01:19.9]} 25... Na7 {[%clk 0:01:27.6]} 26. Rxc8 {[%clk
0:01:17.3]} 26... Nxc8 {[%clk 0:01:25.7]} 27. h5 {[%clk 0:01:17.5]} 27... Ne7
{[%clk 0:01:21]} 28. hxg6 {[%clk 0:01:16.3]} 28... hxg6 {[%clk 0:01:20.7]} 29.
Nd2 {[%clk 0:01:05.3]} 29... Bc6 {[%clk 0:01:14.5]} 30. Bc2 {[%clk 0:00:58.4]}
30... Bb5 {[%clk 0:01:11.2]} 31. a4 {[%clk 0:00:58.1]} 31... Bc4 {[%clk
0:01:11]} 32. Nxc4 {[%clk 0:00:50.8]} 32... dxc4 {[%clk 0:01:11.9]} 33. b5
{[%clk 0:00:51.2]} 33... axb5 {[%clk 0:01:10.8]} 34. axb5 {[%clk 0:00:52.1]}
34... Nd5 {[%clk 0:01:07]} 35. Bxg6 {[%clk 0:00:49.9]} 35... c3 {[%clk
0:01:05.2]} 36. Be4 {[%clk 0:00:44.8]} 36... f5 {[%clk 0:01:05.3]} 37. Bf3
{[%clk 0:00:43]} 37... Ke7 {[%clk 0:01:03.6]} 38. Kf1 {[%clk 0:00:41.6]} 38...
Rd7 {[%clk 0:00:54.2]} 39. Ke2 {[%clk 0:00:40.5]} 39... Nc7 {[%clk 0:00:42.2]}
40. Bc6 {[%clk 0:00:38.5]} 40... Rd8 {[%clk 0:00:42.5]} 41. Rxc3 {[%clk
0:00:38]} 41... Kd6 {[%clk 0:00:43.1]} 42. Rc2 {[%clk 0:00:34.2]} 42... Rh8
{[%clk 0:00:42.3]} 43. f3 {[%clk 0:00:32.1]} 43... Rh2 {[%clk 0:00:41.9]} 44.
Kf2 {[%clk 0:00:32.3]} 44... Rh1 {[%clk 0:00:41.3]} 45. Kg3 {[%clk 0:00:32.2]}
45... Re1 {[%clk 0:00:40.5]} 46. Kf2 {[%clk 0:00:30]} 46... Rd1 {[%clk
0:00:40.2]} 47. g4 {[%clk 0:00:24.6]} 47... fxg4 {[%clk 0:00:36.1]} 48. fxg4
{[%clk 0:00:25.5]} 48... Rb1 {[%clk 0:00:34.2]} 49. Kf3 {[%clk 0:00:13]} 49...
e5 {[%clk 0:00:33.1]} 50. Ke4 {[%clk 0:00:08.4]} 50... exd4 {[%clk 0:00:32.3]}
51. exd4 {[%clk 0:00:09.3]} 51... Ne6 {[%clk 0:00:31.9]} 52. Rg2 {[%clk
0:00:05.4]} 52... Re1+ {[%clk 0:00:30.8]} 53. Kf5 {[%clk 0:00:05.5]} 53... Nxd4+
{[%clk 0:00:30.9]} 54. Kf6 {[%clk 0:00:05.6]} 54... Rf1+ {[%clk 0:00:30.6]} 55.
Kg7 {[%clk 0:00:05.6]} 55... Ne6+ {[%clk 0:00:30.4]} 56. Kh6 {[%clk 0:00:04.7]}
56... Rh1+ {[%clk 0:00:29.8]} 57. Kg6 {[%clk 0:00:03.2]} 57... Nf4+ {[%clk
0:00:30.1]} 58. Kf5 {[%clk 0:00:02.7]} 58... Nxg2 {[%clk 0:00:30.4]} 59. Bxg2
{[%clk 0:00:03.6]} 59... Rg1 {[%clk 0:00:30.7]} 60. Bc6 {[%clk 0:00:04.2]} 60...
Rf1+ {[%clk 0:00:30.8]} 61. Kg6 {[%clk 0:00:04.3]} 61... Ke5 {[%clk 0:00:31]}
62. g5 {[%clk 0:00:04.7]} 62... Rg1 {[%clk 0:00:29.1]} 63. Kh6 {[%clk 0:00:04]}
63... Rg3 {[%clk 0:00:29.3]} 64. g6 {[%clk 0:00:04]} 64... Kf6 {[%clk
0:00:29.6]} 65. Be4 {[%clk 0:00:04.1]} 65... Rh3# {[%clk 0:00:29.3]} 0-1